[Event "*** SCC Grand Prix: Titled Tuesday Blitz"]
[Site "Chess.com"]
[Date "2020.08.04"]
[Round "1"]
[White "BogdanDeac"]
[Black "djano"]
[Result "0-1"]
[WhiteElo "2775"]
[BlackElo "2413"]
[TimeControl "180+1"]
[EndTime "13:50:32 PDT"]
[Termination "djano won by resignation"]

1. Nf3 {[%clk 0:03:00.9]} 1... g6 {[%clk 0:02:57.7]} 2. e4 {[%clk 0:02:59.5]}
2... Bg7 {[%clk 0:02:55.9]} 3. d4 {[%clk 0:02:59.5]} 3... b6 {[%clk 0:02:55.3]}
4. c4 {[%clk 0:02:54.6]} 4... Bb7 {[%clk 0:02:55.2]} 5. Nc3 {[%clk 0:02:54.7]}
5... e6 {[%clk 0:02:55.5]} 6. h4 {[%clk 0:02:54.4]} 6... h6 {[%clk 0:02:54.9]}
7. Bd3 {[%clk 0:02:48.4]} 7... d6 {[%clk 0:02:54.1]} 8. d5 {[%clk 0:02:47.8]}
8... e5 {[%clk 0:02:49.1]} 9. h5 {[%clk 0:02:47.2]} 9... g5 {[%clk 0:02:48.6]}
10. Ne2 {[%clk 0:02:40]} 10... Ne7 {[%clk 0:02:35.6]} 11. Ng3 {[%clk 0:02:39.7]}
11... Nd7 {[%clk 0:02:35.1]} 12. Nh2 {[%clk 0:02:35.5]} 12... Nc5 {[%clk
0:02:26]} 13. Bc2 {[%clk 0:02:33.9]} 13... a5 {[%clk 0:02:25.3]} 14. Ng4 {[%clk
0:02:33.7]} 14... Bc8 {[%clk 0:02:11.9]} 15. Ne3 {[%clk 0:02:31.9]} 15... Bd7
{[%clk 0:02:00.5]} 16. b3 {[%clk 0:02:31.9]} 16... Qc8 {[%clk 0:01:57]} 17. a3
{[%clk 0:02:31.1]} 17... a4 {[%clk 0:01:17.9]} 18. b4 {[%clk 0:02:28]} 18... Nb3
{[%clk 0:01:17.6]} 19. Bxb3 {[%clk 0:02:28]} 19... axb3 {[%clk 0:01:18.5]} 20.
Qxb3 {[%clk 0:02:28.4]} 20... f5 {[%clk 0:01:15.9]} 21. exf5 {[%clk 0:02:27.2]}
21... Nxf5 {[%clk 0:01:16.1]} 22. Nexf5 {[%clk 0:02:22.8]} 22... Bxf5 {[%clk
0:01:17]} 23. Nxf5 {[%clk 0:02:23]} 23... Qxf5 {[%clk 0:01:17.9]} 24. O-O {[%clk
0:02:23.3]} 24... O-O {[%clk 0:01:12.4]} 25. Be3 {[%clk 0:02:03.4]} 25... g4
{[%clk 0:01:11.4]} 26. c5 {[%clk 0:02:00.5]} 26... bxc5 {[%clk 0:01:08.8]} 27.
bxc5 {[%clk 0:02:00.3]} 27... Qxh5 {[%clk 0:01:07.3]} 28. cxd6 {[%clk 0:01:58]}
28... cxd6 {[%clk 0:01:08.2]} 29. Rfc1 {[%clk 0:01:58.3]} 29... e4 {[%clk
0:01:05.1]} 30. Rab1 {[%clk 0:01:50.5]} 30... Be5 {[%clk 0:01:04.7]} 31. Qc4
{[%clk 0:01:18.5]} 31... Qh2+ {[%clk 0:01:00.4]} 32. Kf1 {[%clk 0:01:18.2]}
32... Qh1+ {[%clk 0:01:00.8]} 33. Ke2 {[%clk 0:01:17.7]} 33... Qxg2 {[%clk
0:01:01.3]} 34. a4 {[%clk 0:01:16.4]} 34... g3 {[%clk 0:00:53.3]} 35. Rg1 {[%clk
0:01:12.9]} 35... Rxf2+ {[%clk 0:00:53]} 0-1

[Event "*** SCC Grand Prix: Titled Tuesday Blitz"]
[Site "Chess.com"]
[Date "2020.08.04"]
[Round "1"]
[White "DishonorOnYourCow"]
[Black "Sven_Tica"]
[Result "0-1"]
[WhiteElo "2291"]
[BlackElo "2629"]
[TimeControl "180+1"]
[EndTime "13:50:33 PDT"]
[Termination "Sven_Tica won by resignation"]

1. d4 {[%clk 0:02:59.5]} 1... d5 {[%clk 0:02:59.9]} 2. c4 {[%clk 0:02:58.1]}
2... e6 {[%clk 0:03:00.3]} 3. Nc3 {[%clk 0:02:36.6]} 3... Nf6 {[%clk 0:02:59.8]}
4. cxd5 {[%clk 0:02:36.6]} 4... exd5 {[%clk 0:03:00.1]} 5. Bg5 {[%clk
0:02:35.6]} 5... c6 {[%clk 0:03:00.4]} 6. e3 {[%clk 0:02:35.9]} 6... Be6 {[%clk
0:03:01]} 7. Bd3 {[%clk 0:02:36]} 7... Nbd7 {[%clk 0:03:01.7]} 8. Qc2 {[%clk
0:02:35.8]} 8... h6 {[%clk 0:03:02.1]} 9. Bh4 {[%clk 0:02:35.6]} 9... g5 {[%clk
0:03:02.8]} 10. Bg3 {[%clk 0:02:35]} 10... Nh5 {[%clk 0:03:03.5]} 11. Nge2
{[%clk 0:02:34.9]} 11... Nxg3 {[%clk 0:03:03.8]} 12. hxg3 {[%clk 0:02:35.8]}
12... Bd6 {[%clk 0:03:02.3]} 13. e4 {[%clk 0:02:18.2]} 13... dxe4 {[%clk
0:03:01.2]} 14. Nxe4 {[%clk 0:02:19.1]} 14... Bb4+ {[%clk 0:03:01.4]} 15. N2c3
{[%clk 0:02:14.5]} 15... Qe7 {[%clk 0:02:58]} 16. a3 {[%clk 0:02:10.5]} 16...
Bxc3+ {[%clk 0:02:43.5]} 17. Nxc3 {[%clk 0:01:53.2]} 17... Nf6 {[%clk
0:02:33.1]} 18. O-O-O {[%clk 0:01:43.3]} 18... O-O-O {[%clk 0:02:31.9]} 19. Bf5
{[%clk 0:01:22.4]} 19... Kb8 {[%clk 0:02:30.1]} 20. Rhe1 {[%clk 0:01:20.2]}
20... Rd6 {[%clk 0:02:18.6]} 21. Bxe6 {[%clk 0:00:36.9]} 21... Rxe6 {[%clk
0:02:18.5]} 22. Rxe6 {[%clk 0:00:36.2]} 22... Qxe6 {[%clk 0:02:19.4]} 23. Qd2
{[%clk 0:00:34.5]} 23... Rd8 {[%clk 0:02:18.5]} 24. Re1 {[%clk 0:00:34.3]} 24...
Qc4 {[%clk 0:02:14.7]} 25. Qe3 {[%clk 0:00:30.1]} 25... Qxd4 {[%clk 0:02:09.7]}
26. Qe7 {[%clk 0:00:18.1]} 26... Re8 {[%clk 0:01:57.1]} 27. Qxe8+ {[%clk
0:00:17.7]} 27... Nxe8 {[%clk 0:01:57]} 28. Rxe8+ {[%clk 0:00:18.4]} 28... Kc7
{[%clk 0:01:57.8]} 29. Re7+ {[%clk 0:00:18.6]} 29... Kb6 {[%clk 0:01:54.8]} 30.
Rxf7 {[%clk 0:00:19.5]} 30... a5 {[%clk 0:01:53.7]} 31. Rf3 {[%clk 0:00:18.4]}
31... Qc4 {[%clk 0:01:51.3]} 32. Re3 {[%clk 0:00:17.7]} 32... Qf1+ {[%clk
0:01:51.4]} 33. Kc2 {[%clk 0:00:16.9]} 33... Qxf2+ {[%clk 0:01:50.8]} 34. Re2
{[%clk 0:00:17.1]} 34... Qxg3 {[%clk 0:01:51.3]} 35. Ne4 {[%clk 0:00:16.6]}
35... Qg4 {[%clk 0:01:50.3]} 36. Kd3 {[%clk 0:00:14.7]} 36... h5 {[%clk
0:01:50.4]} 37. Nd6 {[%clk 0:00:14.4]} 37... Qd7 {[%clk 0:01:47.6]} 0-1

[Event "*** SCC Grand Prix: Titled Tuesday Blitz"]
[Site "Chess.com"]
[Date "2020.08.04"]
[Round "1"]
[White "Char_dasha"]
[Black "Anton_Demchenko"]
[Result "0-1"]
[WhiteElo "2415"]
[BlackElo "2828"]
[TimeControl "180+1"]
[EndTime "13:50:35 PDT"]
[Termination "Anton_Demchenko won by resignation"]

1. c4 {[%clk 0:02:57.7]} 1... Nf6 {[%clk 0:02:58.4]} 2. Nc3 {[%clk 0:02:56.3]}
2... d6 {[%clk 0:02:57.9]} 3. g3 {[%clk 0:02:52.9]} 3... g6 {[%clk 0:02:57.3]}
4. Bg2 {[%clk 0:02:53.4]} 4... Bg7 {[%clk 0:02:58.2]} 5. Nf3 {[%clk 0:02:50.8]}
5... O-O {[%clk 0:02:59.1]} 6. O-O {[%clk 0:02:50.2]} 6... Nbd7 {[%clk
0:02:59.3]} 7. d4 {[%clk 0:02:50]} 7... e5 {[%clk 0:02:58.3]} 8. e4 {[%clk
0:02:48.2]} 8... exd4 {[%clk 0:02:58.3]} 9. Nxd4 {[%clk 0:02:48.4]} 9... Re8
{[%clk 0:02:59.2]} 10. h3 {[%clk 0:02:46.2]} 10... Nc5 {[%clk 0:02:59.4]} 11.
Re1 {[%clk 0:02:45.6]} 11... Bd7 {[%clk 0:03:00.3]} 12. Rb1 {[%clk 0:02:31.1]}
12... h6 {[%clk 0:02:55.1]} 13. b4 {[%clk 0:02:27.4]} 13... Ne6 {[%clk
0:02:54.9]} 14. Be3 {[%clk 0:02:25.6]} 14... Ng5 {[%clk 0:02:55]} 15. Bxg5
{[%clk 0:02:02.6]} 15... hxg5 {[%clk 0:02:55.9]} 16. Qd3 {[%clk 0:02:00.9]}
16... g4 {[%clk 0:02:46.1]} 17. h4 {[%clk 0:01:59.5]} 17... Nh5 {[%clk 0:02:37]}
18. Rbd1 {[%clk 0:01:56.8]} 18... Be5 {[%clk 0:02:34.4]} 19. Nd5 {[%clk
0:01:53.5]} 19... c6 {[%clk 0:02:31.5]} 20. Ne3 {[%clk 0:01:53.3]} 20... Nxg3
{[%clk 0:01:41]} 21. fxg3 {[%clk 0:01:23.2]} 21... Bxg3 {[%clk 0:01:41.9]} 22.
Nef5 {[%clk 0:01:23.3]} 22... Bxe1 {[%clk 0:01:38.1]} 23. Nxd6 {[%clk
0:01:21.9]} 23... Qxh4 {[%clk 0:01:33.8]} 24. Nxe8 {[%clk 0:01:11.6]} 24... Rxe8
{[%clk 0:01:32.7]} 25. Nc2 {[%clk 0:01:11.4]} 25... Bf2+ {[%clk 0:01:27.5]} 26.
Kf1 {[%clk 0:01:10.5]} 26... Be6 {[%clk 0:01:27.5]} 27. e5 {[%clk 0:00:43.3]}
27... b5 {[%clk 0:01:19.6]} 28. cxb5 {[%clk 0:00:41.1]} 28... Bb6 {[%clk
0:01:19.6]} 29. Nd4 {[%clk 0:00:38.7]} 29... cxb5 {[%clk 0:01:19]} 30. Rd2
{[%clk 0:00:29.2]} 30... Bc4 {[%clk 0:01:17.4]} 0-1

[Event "*** SCC Grand Prix: Titled Tuesday Blitz"]
[Site "Chess.com"]
[Date "2020.08.04"]
[Round "1"]
[White "Maghalashvili"]
[Black "WeAintSurePal"]
[Result "1-0"]
[WhiteElo "2747"]
[BlackElo "2370"]
[TimeControl "180+1"]
[EndTime "13:50:36 PDT"]
[Termination "Maghalashvili won by checkmate"]

1. Nf3 {[%clk 0:02:54.1]} 1... d5 {[%clk 0:02:59.1]} 2. g3 {[%clk 0:02:51.6]}
2... Nf6 {[%clk 0:02:58.4]} 3. Bg2 {[%clk 0:02:51.4]} 3... g6 {[%clk 0:02:58.4]}
4. O-O {[%clk 0:02:52.3]} 4... Bg7 {[%clk 0:02:59.2]} 5. c4 {[%clk 0:02:52.4]}
5... c6 {[%clk 0:02:54.9]} 6. cxd5 {[%clk 0:02:52.4]} 6... cxd5 {[%clk
0:02:55.8]} 7. d4 {[%clk 0:02:53.3]} 7... O-O {[%clk 0:02:54.9]} 8. Ne5 {[%clk
0:02:54.2]} 8... Ng4 {[%clk 0:02:52.9]} 9. Nf3 {[%clk 0:02:52.2]} 9... Nf6
{[%clk 0:02:51]} 10. Nc3 {[%clk 0:02:52.2]} 10... Ne4 {[%clk 0:02:40.7]} 11. Ng5
{[%clk 0:02:52.1]} 11... Nxc3 {[%clk 0:02:39.3]} 12. bxc3 {[%clk 0:02:53]} 12...
Nc6 {[%clk 0:02:38.5]} 13. e4 {[%clk 0:02:52.8]} 13... e6 {[%clk 0:02:32.2]} 14.
e5 {[%clk 0:02:49.7]} 14... Na5 {[%clk 0:02:29.8]} 15. h4 {[%clk 0:02:49.2]}
15... h6 {[%clk 0:02:28.8]} 16. Nh3 {[%clk 0:02:46.9]} 16... b6 {[%clk
0:02:29.1]} 17. Re1 {[%clk 0:02:37.1]} 17... Ba6 {[%clk 0:02:28.4]} 18. Bf4
{[%clk 0:02:27.8]} 18... Rc8 {[%clk 0:02:27.3]} 19. Qc1 {[%clk 0:02:26.8]} 19...
Kh7 {[%clk 0:02:27]} 20. h5 {[%clk 0:02:23.4]} 20... Qc7 {[%clk 0:02:21.9]} 21.
Re3 {[%clk 0:02:15.6]} 21... Nc4 {[%clk 0:02:21.4]} 22. Rf3 {[%clk 0:02:12.8]}
22... Na5 {[%clk 0:02:16.3]} 23. g4 {[%clk 0:01:59]} 23... gxh5 {[%clk
0:01:54.4]} 24. g5 {[%clk 0:01:53.1]} 24... Be2 {[%clk 0:01:50.3]} 25. gxh6
{[%clk 0:01:45.2]} 25... Bxf3 {[%clk 0:01:46.9]} 26. hxg7 {[%clk 0:01:38.5]}
26... Bxg2 {[%clk 0:01:38.5]} 27. gxf8=Q {[%clk 0:01:31.5]} 27... Rxf8 {[%clk
0:01:38]} 28. Ng5+ {[%clk 0:01:27]} 28... Kh8 {[%clk 0:01:36.6]} 29. Kxg2 {[%clk
0:01:25.6]} 29... Rg8 {[%clk 0:01:33]} 30. Qd1 {[%clk 0:01:20.4]} 30... Qe7
{[%clk 0:01:32.1]} 31. Qxh5+ {[%clk 0:01:14.4]} 31... Kg7 {[%clk 0:01:32.6]} 32.
Nh7 {[%clk 0:00:59.2]} 32... Kh8+ {[%clk 0:01:18.7]} 33. Kf3 {[%clk 0:00:57]}
33... Rg6 {[%clk 0:01:18.8]} 34. Rh1 {[%clk 0:00:47.4]} 34... Kg7 {[%clk
0:01:18.7]} 35. Nf6 {[%clk 0:00:46.1]} 35... Kf8 {[%clk 0:01:15.3]} 36. Qh8+
{[%clk 0:00:45]} 36... Rg8 {[%clk 0:01:15.8]} 37. Qxg8# {[%clk 0:00:45.9]} 1-0

[Event "*** SCC Grand Prix: Titled Tuesday Blitz"]
[Site "Chess.com"]
[Date "2020.08.04"]
[Round "1"]
[White "Marreuh"]
[Black "SilviusTiberius"]
[Result "0-1"]
[WhiteElo "2116"]
[BlackElo "2522"]
[TimeControl "180+1"]
[EndTime "13:50:40 PDT"]
[Termination "SilviusTiberius won by resignation"]

1. e4 {[%clk 0:02:58.9]} 1... c5 {[%clk 0:02:59.1]} 2. c3 {[%clk 0:02:58.2]}
2... Nf6 {[%clk 0:02:58.5]} 3. e5 {[%clk 0:02:58.4]} 3... Nd5 {[%clk 0:02:58.7]}
4. d4 {[%clk 0:02:58.5]} 4... cxd4 {[%clk 0:02:57.2]} 5. cxd4 {[%clk 0:02:59]}
5... Nc6 {[%clk 0:02:55.5]} 6. Nf3 {[%clk 0:02:59.1]} 6... d6 {[%clk 0:02:55.2]}
7. Bc4 {[%clk 0:02:59]} 7... Nb6 {[%clk 0:02:54.3]} 8. Bb3 {[%clk 0:02:59.5]}
8... dxe5 {[%clk 0:02:45.7]} 9. d5 {[%clk 0:02:59.7]} 9... Na5 {[%clk
0:02:44.9]} 10. Nc3 {[%clk 0:03:00.1]} 10... f6 {[%clk 0:02:45.1]} 11. Be3
{[%clk 0:02:46.3]} 11... g6 {[%clk 0:02:42]} 12. O-O {[%clk 0:02:37.6]} 12...
Bg7 {[%clk 0:02:41.3]} 13. a4 {[%clk 0:02:30.3]} 13... Nbc4 {[%clk 0:02:23.8]}
14. Ba2 {[%clk 0:02:15.2]} 14... Nxe3 {[%clk 0:02:00.7]} 15. fxe3 {[%clk
0:02:14.9]} 15... b6 {[%clk 0:02:01.4]} 16. Ne4 {[%clk 0:01:51.9]} 16... Nb7
{[%clk 0:01:54.5]} 17. Qc2 {[%clk 0:01:28.6]} 17... Bd7 {[%clk 0:01:45.3]} 18.
Rfd1 {[%clk 0:01:22.3]} 18... Rc8 {[%clk 0:01:43.7]} 19. Qb3 {[%clk 0:01:15.2]}
19... Nd6 {[%clk 0:01:40.4]} 20. Nfd2 {[%clk 0:01:08.8]} 20... f5 {[%clk
0:01:38.1]} 21. Nxd6+ {[%clk 0:01:07.7]} 21... exd6 {[%clk 0:01:39]} 22. Nc4
{[%clk 0:01:07.4]} 22... Qe7 {[%clk 0:01:33.2]} 23. Qb4 {[%clk 0:01:06.4]} 23...
Rc5 {[%clk 0:01:26.7]} 24. a5 {[%clk 0:01:00.9]} 24... b5 {[%clk 0:01:25.6]} 25.
Na3 {[%clk 0:00:53]} 25... Bh6 {[%clk 0:01:25.1]} 26. Kf2 {[%clk 0:00:48.8]}
26... O-O {[%clk 0:01:20.2]} 27. Rac1 {[%clk 0:00:48.4]} 27... f4 {[%clk
0:01:18]} 28. e4 {[%clk 0:00:45.9]} 28... Rxc1 {[%clk 0:01:14.7]} 29. Rxc1
{[%clk 0:00:45]} 29... f3 {[%clk 0:01:15.2]} 30. Rc7 {[%clk 0:00:41.2]} 30...
Qh4+ {[%clk 0:01:09.5]} 31. g3 {[%clk 0:00:37.6]} 31... Qxh2+ {[%clk 0:01:07.8]}
32. Kf1 {[%clk 0:00:37.1]} 0-1

[Event "*** SCC Grand Prix: Titled Tuesday Blitz"]
[Site "Chess.com"]
[Date "2020.08.04"]
[Round "1"]
[White "DaggiGretarsson"]
[Black "AJSC02"]
[Result "1-0"]
[WhiteElo "2612"]
[BlackElo "2270"]
[TimeControl "180+1"]
[EndTime "13:50:41 PDT"]
[Termination "DaggiGretarsson won by resignation"]

1. d4 {[%clk 0:02:58.2]} 1... Nf6 {[%clk 0:02:59.9]} 2. c4 {[%clk 0:02:58.2]}
2... g6 {[%clk 0:03:00.3]} 3. Nc3 {[%clk 0:02:58.2]} 3... Bg7 {[%clk 0:03:00.4]}
4. e4 {[%clk 0:02:58.2]} 4... d6 {[%clk 0:03:00.6]} 5. f4 {[%clk 0:02:58.4]}
5... O-O {[%clk 0:03:00.5]} 6. Nf3 {[%clk 0:02:58.4]} 6... e5 {[%clk 0:03:00.4]}
7. dxe5 {[%clk 0:02:36.5]} 7... dxe5 {[%clk 0:03:01.3]} 8. Qxd8 {[%clk
0:02:36.1]} 8... Rxd8 {[%clk 0:03:01.9]} 9. Nxe5 {[%clk 0:02:33]} 9... Na6
{[%clk 0:02:59.7]} 10. Be3 {[%clk 0:02:19.3]} 10... Nb4 {[%clk 0:02:46.8]} 11.
Rc1 {[%clk 0:02:18.2]} 11... Ng4 {[%clk 0:02:30.1]} 12. Nxg4 {[%clk 0:02:17.5]}
12... Bxg4 {[%clk 0:02:31]} 13. Kf2 {[%clk 0:02:10.6]} 13... Nd3+ {[%clk
0:02:19.7]} 14. Bxd3 {[%clk 0:02:10]} 14... Rxd3 {[%clk 0:02:20.6]} 15. e5
{[%clk 0:01:54.2]} 15... Rad8 {[%clk 0:02:10.5]} 16. Ne4 {[%clk 0:01:45.7]}
16... Bf5 {[%clk 0:01:29.5]} 17. Nc5 {[%clk 0:01:42.9]} 17... Rd2+ {[%clk
0:01:15.8]} 18. Bxd2 {[%clk 0:01:42.6]} 18... Rxd2+ {[%clk 0:01:16.7]} 19. Kf3
{[%clk 0:01:42.7]} 19... h5 {[%clk 0:01:03.6]} 20. h3 {[%clk 0:01:25.5]} 20...
Rxb2 {[%clk 0:00:59.7]} 21. g4 {[%clk 0:01:22.6]} 21... hxg4+ {[%clk 0:00:59.2]}
22. hxg4 {[%clk 0:01:22.3]} 22... Bc8 {[%clk 0:00:50]} 23. Rcd1 {[%clk
0:01:15.9]} 23... Bf8 {[%clk 0:00:44.4]} 24. Rd8 {[%clk 0:01:14.8]} 24... Kg7
{[%clk 0:00:42.4]} 25. Rxc8 {[%clk 0:01:14.5]} 25... Bxc5 {[%clk 0:00:41.8]} 26.
Rch8 {[%clk 0:01:14.1]} 26... Rf2+ {[%clk 0:00:35.1]} 27. Kg3 {[%clk 0:01:12.7]}
27... g5 {[%clk 0:00:27.5]} 28. f5 {[%clk 0:01:11.6]} 1-0

[Event "*** SCC Grand Prix: Titled Tuesday Blitz"]
[Site "Chess.com"]
[Date "2020.08.04"]
[Round "1"]
[White "xberli"]
[Black "Ermito2020"]
[Result "0-1"]
[WhiteElo "2310"]
[BlackElo "2672"]
[TimeControl "180+1"]
[EndTime "13:50:45 PDT"]
[Termination "Ermito2020 won by resignation"]

1. e4 {[%clk 0:02:58.1]} 1... e5 {[%clk 0:02:59.1]} 2. Nf3 {[%clk 0:02:57.2]}
2... Nc6 {[%clk 0:02:59.7]} 3. Bb5 {[%clk 0:02:57]} 3... a6 {[%clk 0:03:00.1]}
4. Ba4 {[%clk 0:02:56.9]} 4... Nf6 {[%clk 0:03:00.3]} 5. O-O {[%clk 0:02:56.1]}
5... b5 {[%clk 0:03:00.9]} 6. Bb3 {[%clk 0:02:55.5]} 6... Bc5 {[%clk 0:03:01.6]}
7. c3 {[%clk 0:02:55.6]} 7... d6 {[%clk 0:03:01.8]} 8. d4 {[%clk 0:02:55.2]}
8... Bb6 {[%clk 0:03:02.4]} 9. a4 {[%clk 0:02:54.9]} 9... Rb8 {[%clk 0:03:03]}
10. a5 {[%clk 0:02:54.3]} 10... Ba7 {[%clk 0:03:02.5]} 11. Be3 {[%clk
0:02:53.4]} 11... O-O {[%clk 0:02:55.1]} 12. Qe2 {[%clk 0:02:32.3]} 12... exd4
{[%clk 0:02:38.3]} 13. cxd4 {[%clk 0:02:31.7]} 13... Bg4 {[%clk 0:02:24.2]} 14.
Rd1 {[%clk 0:02:24.4]} 14... Re8 {[%clk 0:01:50.7]} 15. Nc3 {[%clk 0:02:10.7]}
15... Nxe4 {[%clk 0:01:42.7]} 16. Nxe4 {[%clk 0:02:00]} 16... Rxe4 {[%clk
0:01:43.6]} 17. Qc2 {[%clk 0:01:58.5]} 17... Qe8 {[%clk 0:01:17.7]} 18. Bd5
{[%clk 0:01:46.2]} 18... Rxe3 {[%clk 0:01:10.1]} 19. fxe3 {[%clk 0:01:18.4]}
19... Qxe3+ {[%clk 0:01:09.1]} 20. Qf2 {[%clk 0:01:13.6]} 20... Qxf2+ {[%clk
0:01:03.6]} 21. Kxf2 {[%clk 0:01:14.5]} 21... Bxf3 {[%clk 0:01:04]} 22. gxf3
{[%clk 0:00:53.1]} 22... Nxd4 {[%clk 0:01:04.2]} 23. Kg2 {[%clk 0:00:52.9]}
23... Nc2 {[%clk 0:01:03.8]} 24. Rac1 {[%clk 0:00:40.4]} 24... Ne3+ {[%clk
0:01:03.1]} 25. Kh3 {[%clk 0:00:33.6]} 25... Nxd1 {[%clk 0:01:04]} 26. Rxd1
{[%clk 0:00:27.1]} 26... Kf8 {[%clk 0:01:03.1]} 27. Rc1 {[%clk 0:00:26.8]} 27...
c5 {[%clk 0:01:02.6]} 28. Re1 {[%clk 0:00:23.7]} 28... c4 {[%clk 0:01:02]} 0-1

[Event "*** SCC Grand Prix: Titled Tuesday Blitz"]
[Site "Chess.com"]
[Date "2020.08.04"]
[Round "1"]
[White "Micki-taryan"]
[Black "StockholmMissile"]
[Result "1-0"]
[WhiteElo "3053"]
[BlackElo "2476"]
[TimeControl "180+1"]
[EndTime "13:50:46 PDT"]
[Termination "Micki-taryan won by resignation"]

1. Nf3 {[%clk 0:03:00.9]} 1... d5 {[%clk 0:02:57.6]} 2. e3 {[%clk 0:03:01.8]}
2... Nf6 {[%clk 0:02:56.4]} 3. b3 {[%clk 0:03:02.7]} 3... Bg4 {[%clk 0:02:55.4]}
4. Bb2 {[%clk 0:03:03.6]} 4... Nbd7 {[%clk 0:02:54.7]} 5. h3 {[%clk 0:03:03.8]}
5... Bh5 {[%clk 0:02:54.5]} 6. c4 {[%clk 0:03:02.4]} 6... e6 {[%clk 0:02:54]} 7.
Nc3 {[%clk 0:03:02.4]} 7... Be7 {[%clk 0:02:52.9]} 8. Be2 {[%clk 0:03:01.6]}
8... c6 {[%clk 0:02:50.6]} 9. g4 {[%clk 0:02:55.6]} 9... Bg6 {[%clk 0:02:50.3]}
10. h4 {[%clk 0:02:55.9]} 10... Nxg4 {[%clk 0:02:41.5]} 11. h5 {[%clk
0:02:55.7]} 11... Bf5 {[%clk 0:02:41.9]} 12. Nd4 {[%clk 0:02:54.8]} 12... Nh6
{[%clk 0:02:15]} 13. cxd5 {[%clk 0:02:54.3]} 13... cxd5 {[%clk 0:02:13.5]} 14.
Rc1 {[%clk 0:02:48.6]} 14... a6 {[%clk 0:02:10.3]} 15. Nxf5 {[%clk 0:02:38.4]}
15... Nxf5 {[%clk 0:02:09]} 16. Bd3 {[%clk 0:02:38.5]} 16... Bf6 {[%clk
0:02:00.4]} 17. Bxf5 {[%clk 0:02:22.6]} 17... exf5 {[%clk 0:02:01.3]} 18. Qf3
{[%clk 0:01:53.8]} 18... d4 {[%clk 0:01:40.8]} 19. Nd5 {[%clk 0:01:49.5]} 19...
dxe3 {[%clk 0:01:38.3]} 20. Qxe3+ {[%clk 0:01:43.1]} 20... Kf8 {[%clk
0:01:33.1]} 21. Nxf6 {[%clk 0:01:42.3]} 21... Nxf6 {[%clk 0:01:32.6]} 22. h6
{[%clk 0:01:42.4]} 22... Ne8 {[%clk 0:01:09.2]} 23. Rg1 {[%clk 0:01:27.1]} 23...
f6 {[%clk 0:00:57.9]} 24. hxg7+ {[%clk 0:01:15.8]} 24... Nxg7 {[%clk 0:00:58.8]}
25. Qc5+ {[%clk 0:01:09.7]} 25... Kg8 {[%clk 0:00:38]} 26. Qc7 {[%clk
0:01:05.5]} 26... Qe8+ {[%clk 0:00:31.3]} 27. Kf1 {[%clk 0:01:04.3]} 27... Qb5+
{[%clk 0:00:27.5]} 28. Rc4 {[%clk 0:01:03.7]} 1-0

[Event "*** SCC Grand Prix: Titled Tuesday Blitz"]
[Site "Chess.com"]
[Date "2020.08.04"]
[Round "1"]
[White "Mazetovic"]
[Black "Justinz"]
[Result "1-0"]
[WhiteElo "2698"]
[BlackElo "2342"]
[TimeControl "180+1"]
[EndTime "13:50:46 PDT"]
[Termination "Mazetovic won by resignation"]

1. e4 {[%clk 0:02:56.3]} 1... c5 {[%clk 0:02:58.9]} 2. Nf3 {[%clk 0:02:54.4]}
2... d6 {[%clk 0:02:59]} 3. Bb5+ {[%clk 0:02:52.8]} 3... Nd7 {[%clk 0:02:57.6]}
4. c3 {[%clk 0:02:48.9]} 4... a6 {[%clk 0:02:56.7]} 5. Ba4 {[%clk 0:02:48.8]}
5... Nf6 {[%clk 0:02:55]} 6. Qe2 {[%clk 0:02:48.2]} 6... b5 {[%clk 0:02:26.7]}
7. Bc2 {[%clk 0:02:47.9]} 7... c4 {[%clk 0:02:26.4]} 8. b3 {[%clk 0:02:45.9]}
8... cxb3 {[%clk 0:02:19.4]} 9. axb3 {[%clk 0:02:45.4]} 9... Bb7 {[%clk
0:02:18.8]} 10. d4 {[%clk 0:02:44.5]} 10... e5 {[%clk 0:02:17.3]} 11. O-O {[%clk
0:02:43.5]} 11... Be7 {[%clk 0:02:16.6]} 12. Nbd2 {[%clk 0:02:27.7]} 12... Rc8
{[%clk 0:02:11.7]} 13. Bb2 {[%clk 0:02:19.2]} 13... O-O {[%clk 0:02:09.3]} 14.
d5 {[%clk 0:02:15.6]} 14... Nh5 {[%clk 0:01:53.5]} 15. g3 {[%clk 0:02:12.7]}
15... g6 {[%clk 0:01:52]} 16. Ne1 {[%clk 0:01:32.9]} 16... Ng7 {[%clk
0:01:39.2]} 17. f3 {[%clk 0:01:27]} 17... f5 {[%clk 0:01:29.2]} 18. Ng2 {[%clk
0:01:25.8]} 18... Nc5 {[%clk 0:01:22.1]} 19. b4 {[%clk 0:01:23]} 19... Nd7
{[%clk 0:01:20.5]} 20. Nb3 {[%clk 0:01:19.9]} 20... Nb6 {[%clk 0:01:18.4]} 21.
Na5 {[%clk 0:01:19]} 21... Qd7 {[%clk 0:01:14.7]} 22. Bb3 {[%clk 0:01:15.2]}
22... g5 {[%clk 0:01:03.3]} 23. Qe3 {[%clk 0:01:01.1]} 23... Nc4 {[%clk
0:00:52.1]} 24. Nxc4 {[%clk 0:00:56.3]} 24... bxc4 {[%clk 0:00:52.1]} 25. Bc2
{[%clk 0:00:56.4]} 25... g4 {[%clk 0:00:47.2]} 26. fxg4 {[%clk 0:00:53.8]} 26...
fxe4 {[%clk 0:00:45.7]} 27. Qxe4 {[%clk 0:00:52]} 1-0